[Event "5th Sharjah Masters 2022"]
[Site "Sharjah"]
[Date "2022.05.22"]
[Round "2.18"]
[White "Moussard, Jules"]
[Black "Kadric, Denis"]
[Result "1/2-1/2"]
[ECO "C42"]
[WhiteElo "2651"]
[BlackElo "2576"]
[Annotator "TA"]
[PlyCount "56"]
[EventDate "2022.05.21"]
[EventType "swiss"]
[EventCountry "UAE"]
[SourceTitle "playchess.com"]
[Source "ChessBase"]
[SourceQuality "1"]
[TimeControl "5400+30"]

{[%evp 18,56,25,-22,-11,-26,-29,-109,-87,-104,-33,-21,-5,-35,0,0,0,0,0,0,37,19,36,0,108,0,0,10,0,0,0,0,0,0,210,0,0,0,0,0,0]} 1. e4 {[%emt 0:00:03]} e5 {[%emt 0:00:12]} 2. Nf3 {[%emt 0:00:44]} Nf6 {[%emt 0:00:06]} 3. Nxe5 {[%emt 0:01:38]} d6 {[%emt 0:00:05]} 4. Nf3 {[%emt 0:00:58]} Nxe4 {[%emt 0:00:09]} 5. d4 {[%emt 0:00:10]} d5 {[%emt 0:00:12]} 6. Bd3 {[%emt 0:00:13]} Nc6 {[%emt 0:01:26]} 7. O-O {[%emt 0:01:51]} Be7 {[%emt 0:00:13]} 8. Re1 {[%emt 0:03:14]} Bg4 {[%emt 0:00:55]} 9. c3 {[%emt 0:07:16]} f5 {[%emt 0:00:18]} 10. h3 {[%emt 0:13:01]} (10. Qb3 $142 Qd6 11. Nfd2 (11. Qxb7 Rb8 $17)) 10... Bh5 $11 {[%emt 0:03:45] C42: Petroff Defence: 3 Nxe5 and unusual White 3rd moves.} 11. Bf4 {[%emt 0:12:54]} O-O {[%emt 0:04:21]} 12. Qb3 {[%emt 0:06:29]} (12. Be2 $11) 12... Bxf3 $17 {[%emt 0:20:34] Black is better.} 13. gxf3 {[%emt 0:00:06] [#]} Ng5 $146 {[%emt 0:00:10]} (13... Kh8 $1 $17 {[%cal Oe4f2] ...Nxf2! is the strong threat.} 14. Bf1 (14. fxe4 fxe4 15. Bxe4 Rxf4 $17) (14. Qxb7 Bd6 $15) 14... Bd6 15. fxe4 Bxf4 16. exd5 Qg5+ 17. Kh1 Qh4) ({Predecessor:} 13... Nxf2 14. Kxf2 Bh4+ 15. Bg3 f4 16. Bxh4 Qxh4+ 17. Ke2 Rfe8+ 18. Be4 Rad8 19. Kd1 Kh8 {0-1 (36) Pratt,L (1224)-Markus,A (1136) IECC email 2016}) 14. Kg2 $15 {[%emt 0:04:17]} Na5 {[%emt 0:15:54] Pair of Knights!} 15. Qa4 {[%emt 0:07:15]} Bd6 {[%emt 0:00:05]} (15... c6 $5 {[%cal Re7d6]}) 16. Bxd6 {[%emt 0:03:42]} Qxd6 {[%emt 0:00:10]} (16... cxd6 17. Qb5 $14) 17. Qxa5 {[%emt 0:03:13] aiming for Nd2.} b6 {[%emt 0:00:15]} 18. Qa4 {[%emt 0:05:13]} Qg6 {[%emt 0:10:48]} (18... Qh6 $5 {[%cal Rh6h3]} 19. h4 (19. Rh1 Ne6 $11) 19... Qxh4 $14) 19. Re3 {[%emt 0:01:15]} Rf6 {[%emt 0:29:26][%cal Og5h3]} (19... Ne6+ 20. Kh2 $16) 20. Na3 {[%emt 0:05:13] Hoping for Kf1.} (20. Qd7 $5 {[%cal Rd7d5]} c6 21. Re7 $14) 20... Raf8 {[%emt 0:07:21] [#]} (20... Nxh3+ $11 {remains equal.} 21. Kxh3 c6) 21. Rh1 {[%emt 0:07:13]} (21. Qxa7 $2 {[#]} Nxh3+ $1 22. Kf1 (22. Kxh3 Qg5) 22... Qg1+ 23. Ke2 Qxf2+ 24. Kd1 Qxe3 $19) (21. Kf1 $1 $16) 21... Nxh3+ $1 $11 {[%emt 0:00:42]} 22. Kf1 $1 {[%emt 0:00:16]} (22. Kxh3 Qg5) 22... Nf4 {[%emt 0:00:02]} 23. Rg1 {[%emt 0:00:38] Prevents Qg2+.} Qh6 {[%emt 0:00:33]} 24. Nc2 {[%emt 0:02:00]} (24. Qxa7 $2 Nxd3 25. Nc2 (25. Rxd3 $2 Qc1+ 26. Ke2 Re6+ 27. Re3 Rxe3+ 28. fxe3 Qxg1 $19) 25... Qh3+ 26. Ke2 Qh2 27. Rxg7+ Kxg7 $19) 24... Qh2 {[%emt 0:01:27]} 25. Rg3 {[%emt 0:00:46]} ({Wrong is} 25. Qd7 $2 R6f7 26. Qc6 Nh3 $19) 25... Qh1+ {[%emt 0:01:17]} 26. Rg1 {[%emt 0:00:02]} Qh2 {[%emt 0:00:31] Threatens to win with ...Nh3. The position is equal.} (26... Rh6 $2 27. Qd7 Qh3+ 28. Ke1 $18) 27. Rg3 {[%emt 0:00:12]} ({Don't blunder} 27. Qd7 $2 R6f7 28. Qc6 Nh3 $19) 27... Qh1+ {[%emt 0:01:29]} 28. Rg1 {[%emt 0:00:04]} Qh2 $1 {[%emt 0:01:13] Weighted Error Value: White=0.19 (very precise) /Black=0.20 (precise)} (28... Rh6 $2 29. Qd7 Qh3+ 30. Ke1 $18) 1/2-1/2

[Event "5th Sharjah Masters 2022"]
[Site "Sharjah"]
[Date "2022.05.22"]
[Round "2.19"]
[White "Davtyan, Artur"]
[Black "Tabatabaei, M. Amin"]
[Result "0-1"]
[ECO "D45"]
[WhiteElo "2488"]
[BlackElo "2650"]
[Annotator "TA"]
[PlyCount "62"]
[EventDate "2022.05.21"]
[EventType "swiss"]
[EventCountry "UAE"]
[SourceTitle "playchess.com"]
[Source "ChessBase"]
[SourceQuality "1"]
[TimeControl "5400+30"]

{[%evp 20,62,4,0,0,0,0,0,0,0,0,-16,0,0,0,-17,-8,-43,0,-48,-45,-64,-60,-64,-58,-64,-70,-62,-70,-60,-59,-75,-67,-349,-345,-1118,-1114,-1085,-1025,-29993,-29994,-29994,-29994,-29994,-29995]} 1. d4 {[%emt 0:00:23]} d5 {[%emt 0:00:08]} 2. c4 {[%emt 0:00:07]} c6 {[%emt 0:00:05]} 3. Nf3 {[%emt 0:00:28]} Nf6 {[%emt 0:00:06]} 4. Nc3 {[%emt 0:00:40]} e6 {[%emt 0:00:08]} 5. e3 {[%emt 0:00:31]} Nbd7 {[%emt 0:00:07]} 6. Qc2 {[%emt 0:00:34]} Bd6 {[%emt 0:00:06]} 7. b3 {[%emt 0:00:22]} O-O {[%emt 0:00:08]} 8. Be2 {[%emt 0:01:20]} b6 {[%emt 0:00:09]} 9. O-O {[%emt 0:00:26]} Bb7 {[%emt 0:00:05]} 10. Bb2 {[%emt 0:03:21]} Re8 {[%emt 0:00:19]} 11. Rad1 {[%emt 0:11:06]} Qc7 {[%emt 0:00:25] [#] D45: Semi-Slav: 5 e3.} 12. cxd5 $146 {[%emt 0:02:09]} ({Predecessor:} 12. e4 Nxe4 13. Nxe4 dxe4 14. Qxe4 c5 15. Qh4 Rad8 16. Rfe1 Be7 17. Qh3 Bf6 18. Bd3 h6 19. Be4 Bxe4 20. Rxe4 cxd4 21. Bxd4 {½-½ (45) Le,Q (2737)-Ding,L (2777) Huaian 2017}) 12... exd5 {[%emt 0:10:31]} 13. Bd3 {[%emt 0:00:56]} Re7 {[%emt 0:00:34] The position is equal.} 14. h3 {[%emt 0:29:50]} Rae8 {[%emt 0:01:09]} 15. Nd2 {[%emt 0:00:14]} Nf8 {[%emt 0:09:28]} 16. Qc1 {[%emt 0:14:11]} b5 {[%emt 0:06:07][%cal Bb6b5,Bb5b4][%mdl 32]} 17. Rfe1 {[%emt 0:02:26]} Ng6 {[%emt 0:01:06]} 18. Qb1 {[%emt 0:00:25]} Qa5 {[%emt 0:11:33]} 19. e4 {[%emt 0:07:03]} (19. Rc1 $11) 19... b4 $1 $15 {[%emt 0:02:50]} 20. Na4 {[%emt 0:02:38] aiming for e5.} dxe4 {[%emt 0:00:13] Black is more active.} 21. Nxe4 {[%emt 0:02:31]} Nxe4 {[%emt 0:00:17]} 22. Rxe4 {[%emt 0:03:32]} Qd5 {[%emt 0:14:57][%cal Re7e4]} 23. Rxe7 {[%emt 0:07:12]} Rxe7 {[%emt 0:00:09]} 24. Nc5 $1 {[%emt 0:00:38]} Bc8 $1 {[%emt 0:07:10] Threatens to win with ...Nf4.} 25. Be4 {[%emt 0:03:10]} Qh5 $40 {[%emt 0:11:30][%cal Oc8h3][%mdl 128] ...Bxh3! is the strong threat. White needs to defend precisely.} 26. Re1 $2 {[%emt 0:04:33][%mdl 8192] [#] This move loses the game for White.} (26. Bxc6 Bxh3 $1 27. g3 Nf4 $1 $19 {[%mdl 512]}) ({White should try} 26. Bf3 $15 Qh6 27. Nd3) 26... Bxh3 $1 $19 {[%emt 0:02:15]} 27. g3 {[%emt 0:02:42] [#]} ({But not} 27. gxh3 Qxh3 28. f4 Qg4+ 29. Kf2 Qxf4+ 30. Ke2 Bxc5 $19) (27. Nd3 Bxg2 28. Bxg2 Qh2+ 29. Kf1) 27... Nh4 $1 {[%emt 0:03:36][%mdl 512] ( -> ...Nf3+)} 28. Re3 {[%emt 0:00:26] Against Nf3+} f5 {[%emt 0:00:41]} 29. Bxc6 {[%emt 0:00:35]} Rxe3 {[%emt 0:00:07] Black mates.} 30. fxe3 {[%emt 0:00:01]} Nf3+ {[%emt 0:00:50]} 31. Kf2 {[%emt 0:00:20] [#]} Bxg3+ $1 {[%emt 0:00:07][%mdl 512] Weighted Error Value: White=0.78/Black=0.02 (flawless)} 0-1

[Event "5th Sharjah Masters 2022"]
[Site "Sharjah"]
[Date "2022.05.22"]
[Round "2.20"]
[White "Nihal Sarin"]
[Black "Muradli, Mahammad"]
[Result "0-1"]
[ECO "E11"]
[WhiteElo "2646"]
[BlackElo "2539"]
[Annotator "TA"]
[PlyCount "90"]
[EventDate "2022.05.21"]
[EventType "swiss"]
[EventCountry "UAE"]
[SourceTitle "playchess.com"]
[Source "ChessBase"]
[SourceQuality "1"]
[TimeControl "5400+30"]

{[%evp 11,90,12,8,10,10,0,0,-23,0,0,0,-13,0,0,0,2,26,-41,-33,-108,-66,-81,-63,-45,-54,-168,-109,-158,-164,-160,-165,-168,-101,-95,-100,-224,-173,-200,-204,-223,-169,-253,-195,-172,-156,-154,-147,-191,-191,-182,-171,-213,-208,-237,-224,-248,-184,-190,-188,-218,-210,-228,-24,-27,-22,-27,-22,-22,-21,-28,0,-185,-191,-1235,-1025,-29993,-29994,-29994,-29993,-29993,-29994]} 1. d4 {[%emt 0:00:12] Edouard,Romain} d5 {[%emt 0:00:07]} 2. c4 {[%emt 0:00:11]} e6 {[%emt 0:00:04]} 3. Nf3 {[%emt 0:00:04]} Nf6 {[%emt 0:00:13]} 4. g3 {[%emt 0:00:05]} Bb4+ {[%emt 0:00:57]} 5. Bd2 {[%emt 0:00:07]} Be7 {[%emt 0:00:07]} 6. Bg2 {[%emt 0:00:39]} O-O {[%emt 0:00:09]} 7. Qc2 {[%emt 0:00:10] E11: Bogo-Indian.} c6 {[%emt 0:00:43] 7...Nbd7 deserves study.} 8. h4 {[%emt 0:00:47]} Nbd7 {[%emt 0:04:24]} 9. Nc3 {[%emt 0:01:57] [#] The position is equal.} Nb6 $5 $146 {[%emt 0:07:56][%mdl 8] An interesting novelty.} ({Predecessor:} 9... dxc4 10. Rd1 b5 11. Ne5 Nxe5 12. dxe5 Nd5 13. Ne4 f5 14. exf6 gxf6 15. b3 cxb3 16. axb3 {1-0 (47) Dubov,D (2699)-Ding,L (2791) chess24.com INT 2020 CBM 196 Extra [Edouard,Romain]}) 10. b3 {[%emt 0:25:25]} dxc4 {[%emt 0:04:25]} 11. e4 {[%emt 0:02:54]} c5 {[%emt 0:18:08]} 12. dxc5 {[%emt 0:10:02]} Nbd7 {[%emt 0:01:52]} 13. bxc4 {[%emt 0:19:53]} Nxc5 {[%emt 0:03:59]} (13... Ng4 $5 {[%cal Rd7c5]}) 14. e5 {[%emt 0:10:06]} (14. Bg5 $1 $11) 14... Ng4 $15 {[%emt 0:02:22] ...Nd3+ is the strong threat.} 15. Ke2 {[%emt 0:00:01] Inhibits Nd3.} (15. O-O $15) 15... Bd7 {[%emt 0:06:34]} 16. Bf4 {[%emt 0:02:31]} Qa5 {[%emt 0:06:21]} 17. Ng5 $1 {[%emt 0:04:58][%csl Gg5][%cal Rc2h7]} g6 {[%emt 0:01:31]} 18. Rhd1 {[%emt 0:00:01]} (18. Kf1 $15) 18... Qa6 {[%emt 0:04:19] Chess con chili.} ({Black should try} 18... f6 $19 19. exf6 Bxf6) 19. Kf1 {[%emt 0:04:39]} (19. Rac1 $142) 19... Qxc4+ $17 {[%emt 0:02:59]} 20. Qe2 {[%emt 0:00:39]} Qxc3 {[%emt 0:03:18]} 21. Qxg4 {[%emt 0:00:04]} Bb5+ {[%emt 0:00:40]} (21... Ba4 $19 22. Rdc1 Bc2) 22. Kg1 {[%emt 0:00:11]} h5 {[%emt 0:00:12]} 23. Qh3 {[%emt 0:00:01]} (23. Qf3 $17 {was the only defense.} Qxf3 24. Nxf3) 23... Be2 {[%emt 0:07:33]} 24. Rdc1 {[%emt 0:04:15]} Qa3 {[%emt 0:00:23]} 25. Be3 {[%emt 0:06:18]} Rad8 {[%emt 0:03:17][%cal Ba8d8,Bd8d5,Bd5e5][%mdl 32]} 26. Ne4 {[%emt 0:01:45]} (26. Be4 $142) 26... Bg4 {[%emt 0:05:56]} 27. Qh1 {[%emt 0:00:07][%cal Re4c5]} Nxe4 {[%emt 0:00:29]} 28. Bxe4 {[%emt 0:00:02]} b6 {[%emt 0:00:35]} 29. Bf3 {[%emt 0:04:10]} Bxf3 $1 {[%emt 0:02:02]} 30. Qxf3 {[%emt 0:00:02]} Rd5 {[%emt 0:00:15]} 31. Kg2 {[%emt 0:01:46]} Rxe5 {[%emt 0:01:21]} 32. Rc7 {[%emt 0:00:12]} Rf5 {[%emt 0:01:10]} 33. Qb7 {[%emt 0:02:08]} Bf6 {[%emt 0:00:30]} 34. Rd1 {[%emt 0:00:22]} Qxa2 {[%emt 0:00:21]} 35. Rdd7 {[%emt 0:00:41][%cal Rd7f7]} Be5 {[%emt 0:00:55]} 36. Rc8 {[%emt 0:00:15] [#]} Rxc8 {[%emt 0:06:18]} (36... Qe2 $1 $19 {Hoping for ...Rxc8.} 37. Rxf8+ Kxf8 38. Rd8+ Kg7) 37. Qxc8+ $11 {[%emt 0:00:01]} Kh7 {[%emt 0:00:10]} (37... Kg7 $5 38. Qe8 Qc4 $11) 38. Qe8 $1 {[%emt 0:00:55] aiming for Rd8.} (38. Qf8 $2 Bg7 39. Qa8 (39. Rxf7 $2 Rxf7 40. Qxf7 a5 $19) 39... Qe2 40. Rxa7 b5 $19) 38... Bg7 $1 {[%emt 0:03:02]} 39. Rd8 {[%emt 0:00:25][%csl Gd8][%cal Re8g8]} g5 $1 {[%emt 0:00:01] White must now prevent ...gxh4.} 40. Qg8+ {[%emt 0:00:53]} Kg6 $1 {[%emt 0:00:01] Threatens to win with ...gxh4.} 41. hxg5 {[%emt 0:00:35] [#]} (41. Bd4 $11 {and White has nothing to worry.} e5 42. hxg5) 41... Rd5 $1 $19 {[%emt 0:02:15] And now ...Rxd8 would win.} ({Not} 41... Qe2 42. Bd4 Qe4+ 43. Kg1 (43. Kh2 Rxf2+ 44. Bxf2 Qc2 $11) 43... Qe1+ 44. Kg2 Qe4+ 45. Kh2 Rxf2+ 46. Bxf2 $11) 42. Rb8 {[%emt 0:00:28]} (42. Rf8 $2 Rd7 43. Rc8 Qd5+ 44. Kh2 Qe4 $19) (42. Bd4 e5 43. Be3) 42... Rd1 {[%emt 0:00:50] ( -> ...Qd5+)} 43. Qc8 {[%emt 0:00:32]} Qd5+ {[%emt 0:00:12] Black mates.} ({Don't go for} 43... Qe2 $2 44. Qc6 Qf1+ 45. Kh2 Qg1+ 46. Kh3 Qh1+ 47. Qxh1 Rxh1+ 48. Kg2 $19) 44. f3 {[%emt 0:00:01]} Qa2+ {[%emt 0:00:30]} 45. Bf2 {[%emt 0:00:05]} Rd2 {[%emt 0:00:06] Weighted Error Value: White=0.61/Black=0.21 (precise)} 0-1

[Event "5th Sharjah Masters 2022"]
[Site "Sharjah"]
[Date "2022.05.22"]
[Round "2.21"]
[White "Ter-Sahakyan, Samvel"]
[Black "Vokhidov, Shamsiddin"]
[Result "1/2-1/2"]
[ECO "C65"]
[WhiteElo "2640"]
[BlackElo "2536"]
[Annotator "TA"]
[PlyCount "148"]
[EventDate "2022.05.21"]
[EventType "swiss"]
[EventCountry "UAE"]
[SourceTitle "playchess.com"]
[Source "ChessBase"]
[SourceQuality "1"]
[TimeControl "5400+30"]

{[%evp 9,148,-6,0,8,13,9,12,0,6,-25,21,17,19,16,23,-7,2,0,0,0,17,17,30,0,39,15,28,6,0,0,0,0,0,-7,2,0,0,4,15,11,12,16,33,22,93,91,107,112,120,104,105,116,147,145,198,198,204,204,197,197,197,146,146,93,93,93,86,86,82,89,87,91,91,78,73,68,68,75,74,34,34,34,56,58,63,61,62,62,70,58,58,58,68,68,75,58,58,56,56,56,56,56,56,56,56,56,56,56,56,56,56,56,56,56,56,56,56,56,56,56,56,15,35,8,8,0,15,0,56,56,56,56,56,56,56,56,56,56,56,56,56]} 1. e4 {[%emt 0:00:04]} e5 {[%emt 0:00:05]} 2. Nf3 {[%emt 0:00:25]} Nc6 {[%emt 0:00:06]} 3. Bb5 {[%emt 0:05:38]} Nf6 {[%emt 0:01:01]} 4. d3 {[%emt 0:03:00]} Bc5 {[%emt 0:00:11]} 5. Bg5 {[%emt 0:03:56]} h6 {[%emt 0:03:46]} 6. Bh4 {[%emt 0:00:13] C65: Ruy Lopez: Berlin Defence (3...Nf6), unusual lines and 4 0-0 Bc5.} Be7 {[%emt 0:10:14]} 7. Nbd2 {[%emt 0:12:33]} d6 {[%emt 0:02:28]} 8. c3 {[%emt 0:01:42] The position is equal.} O-O {[%emt 0:00:53] [#]} 9. Ba4 $146 {[%emt 0:07:49]} ({Predecessor:} 9. O-O Nh5 10. Bg3 Nxg3 11. hxg3 Bf6 12. a4 a5 13. Re1 g6 14. Nf1 Bg7 15. Ne3 {1-0 (48) Ter Sahakyan,S (2553)-Swiercz,D (2654) Chess.com INT 2018}) 9... Nd7 {[%emt 0:08:17]} (9... Nh5 {feels stronger.} 10. Bg3 Nxg3 11. hxg3 Rb8) 10. Bg3 $11 {[%emt 0:04:34]} Nc5 {[%emt 0:06:13]} 11. Bc2 {[%emt 0:01:12]} f5 {[%emt 0:00:06]} 12. b4 {[%emt 0:10:49]} fxe4 {[%emt 0:00:31]} 13. dxe4 {[%emt 0:00:06]} (13. bxc5 {feels hotter.} exf3 14. Nxf3 Bg4 15. cxd6 cxd6 16. d4) 13... Ne6 {[%emt 0:00:04]} 14. Nc4 {[%emt 0:05:38]} Bf6 {[%emt 0:06:58]} 15. O-O {[%emt 0:07:47]} Ne7 {[%emt 0:02:18]} 16. Ne3 {[%emt 0:00:50]} g6 {[%emt 0:09:27]} 17. a3 {[%emt 0:09:48]} Bg7 {[%emt 0:03:57]} 18. Bb3 {[%emt 0:00:50]} Kh7 {[%emt 0:01:52]} 19. Ra2 {[%emt 0:00:05]} a5 {[%emt 0:03:29]} 20. Rd2 {[%emt 0:02:23][%cal Of3e5]} Qe8 {[%emt 0:00:10]} 21. Re1 {[%emt 0:00:15]} Nf4 {[%emt 0:06:52]} 22. c4 {[%emt 0:03:16]} axb4 {[%emt 0:04:21]} 23. axb4 {[%emt 0:00:03]} b6 {[%emt 0:02:40]} 24. c5 {[%emt 0:03:03]} bxc5 {[%emt 0:00:05]} 25. bxc5 {[%emt 0:00:04]} dxc5 {[%emt 0:00:02]} 26. Qc2 {[%emt 0:08:22]} Qb5 {[%emt 0:04:43] [#]} (26... Be6 $11) 27. Rb1 $1 $16 {[%emt 0:01:43][%cal Ob3g8] Hoping for Bg8+!} Qc6 {[%emt 0:06:21][%cal Of4h3]} 28. Nd5 {[%emt 0:01:12]} Nexd5 {[%emt 0:01:16]} 29. Bxd5 {[%emt 0:00:35]} Nxd5 {[%emt 0:00:04]} 30. Rxd5 {[%emt 0:01:07][%cal Bd2d5,Bd5c5,Bc5c7][%mdl 32]} Qa4 {[%emt 0:03:03]} 31. Rxc5 {[%emt 0:02:34]} Bb7 {[%emt 0:04:58]} (31... Qxc2 $16 {keeps fighting.} 32. Rxc2 Bb7) 32. Qxa4 $18 {[%emt 0:01:43]} Rxa4 {[%emt 0:00:02]} 33. Rxc7 {[%emt 0:00:08]} Bxe4 {[%emt 0:00:13] [#]} 34. Bxe5 $1 {[%emt 0:01:12]} Rg8 {[%emt 0:00:09] [#]} (34... Bxb1 $2 35. Rxg7+ Kh8 36. Rxg6+ Kh7 37. Rg7+ Kh8 38. Rg4+ Kh7 39. Rg7+ Kh8 40. Rg4+ Kh7 41. Rxa4 $18) 35. Rb8 {[%emt 0:01:01][%mdl 512]} Ra8 $16 {[%emt 0:00:31]} (35... Rxb8 $2 36. Rxg7+ Kh8 37. Rxg6+ Kh7 38. Rg7+ Kh8 39. Rb7+ Kg8 40. Rxb8+ $18) 36. Rxa8 {[%emt 0:01:36] White is much more active.} ({White should play} 36. Rb3 {[%cal Of3g5] aiming for Ng5+!} Kh8 {[#]} 37. Ng5 $1 {[%mdl 512]}) 36... Bxa8 {[%emt 0:00:01]} 37. Nd4 {[%emt 0:01:06] Threatens to win with Ne6.} Bd5 {[%emt 0:00:01] Inhibits Ne6.} 38. Rd7 {[%emt 0:00:32]} Bc4 {[%emt 0:00:02]} 39. f4 {[%emt 0:00:33] Rc7 is the strong threat.} Kh8 {[%emt 0:00:20]} 40. Nf3 {[%emt 0:00:23]} Be6 {[%emt 0:00:42]} 41. Re7 {[%emt 0:00:25]} Bd5 {[%emt 0:00:01]} 42. Kf2 {[%emt 0:00:23]} Bxe5 {[%emt 0:00:37]} 43. Nxe5 $14 {[%emt 0:00:11][%mdl 4096] Endgame KRB-KRN} Rg7 {[%emt 0:00:12]} 44. h4 {[%emt 0:00:22]} Kh7 {[%emt 0:00:27]} 45. Re8 {[%emt 0:00:35]} Rc7 {[%emt 0:00:38]} 46. g4 {[%emt 0:00:24]} Kg7 {[%emt 0:02:07]} 47. Ke3 {[%emt 0:00:24]} Ra7 {[%emt 0:00:21]} 48. Rd8 {[%emt 0:00:32]} Bf7 {[%emt 0:00:08]} 49. Ke4 {[%emt 0:01:06]} Ra4+ {[%emt 0:02:00]} 50. Rd4 {[%emt 0:00:08]} Bb3 {[%emt 0:04:08]} 51. Rxa4 {[%emt 0:00:46]} Bxa4 {[%emt 0:00:01] KB-KN} 52. g5 {[%emt 0:00:06]} hxg5 {[%emt 0:01:29]} 53. hxg5 {[%emt 0:00:13]} Bc2+ {[%emt 0:01:04]} 54. Kd5 {[%emt 0:00:25]} Bf5 {[%emt 0:00:09]} 55. Kc6 {[%emt 0:01:05]} Kf8 {[%emt 0:00:39]} 56. Kd6 {[%emt 0:00:05]} Ke8 {[%emt 0:00:24]} 57. Nc6 {[%emt 0:00:32] And now Ne7 would win.} Kf7 {[%emt 0:00:47]} 58. Ne7 {[%emt 0:01:19]} Bd3 {[%emt 0:00:50]} 59. Nd5 {[%emt 0:00:26]} Bf5 {[%emt 0:00:17]} 60. Ne3 {[%emt 0:00:20]} Bd3 {[%emt 0:00:20]} 61. Ng4 {[%emt 0:00:14] Ne5+ would kill now.} Kf8 {[%emt 0:00:39]} 62. Nh6 {[%emt 0:01:03]} Bc4 $1 {[%emt 0:00:47]} 63. Kd7 {[%emt 0:00:04]} Bd5 {[%emt 0:01:22]} 64. Ng4 {[%emt 0:00:37]} Be4 {[%emt 0:00:14] ( -> ...Bf5+)} 65. Kd8 {[%emt 0:00:41]} Kf7 {[%emt 0:00:35]} 66. Nh6+ {[%emt 0:00:31]} Kf8 {[%emt 0:00:55]} 67. Kd7 {[%emt 0:00:05] With the idea Kd6.} Bd5 $1 {[%emt 0:01:13]} 68. Kd6 {[%emt 0:00:16]} Bb3 {[%emt 0:00:23]} ({Black should try} 68... Bc4 $1 $11) 69. Ng4 {[%emt 0:00:20] White is slightly better.} Bc2 $1 {[%emt 0:00:08]} 70. Nh2 {[%emt 0:01:05]} Kf7 {[%emt 0:00:46]} 71. Nf3 {[%emt 0:00:26]} Bf5 $1 {[%emt 0:00:15]} 72. Nd4 {[%emt 0:00:24] Against Bc2} Be4 {[%emt 0:00:25]} 73. Ne6 {[%emt 0:00:29]} Bf5 {[%emt 0:00:19]} 74. Nc5 {[%emt 0:00:29]} Ke8 {[%emt 0:00:25] White really could win this.  Weighted Error Value: White=0.06 (flawless) /Black=0.09 (flawless)} 1/2-1/2

[Event "5th Sharjah Masters 2022"]
[Site "Sharjah"]
[Date "2022.05.22"]
[Round "2.22"]
[White "Suleymanli, Aydin"]
[Black "Petrosyan, Manuel"]
[Result "1/2-1/2"]
[ECO "A28"]
[WhiteElo "2537"]
[BlackElo "2638"]
[Annotator "TA"]
[PlyCount "45"]
[EventDate "2022.05.21"]
[EventType "swiss"]
[EventCountry "UAE"]
[SourceTitle "playchess.com"]
[Source "ChessBase"]
[SourceQuality "1"]
[TimeControl "5400+30"]

{[%evp 9,45,0,8,4,17,4,17,0,19,16,26,16,23,21,21,-10,0,0,48,42,31,24,20,0,13,18,17,2,21,0,27,0,0,0,21,0,3,0]} 1. c4 {[%emt 0:00:02]} Nf6 {[%emt 0:00:47]} 2. Nc3 {[%emt 0:00:22]} e5 {[%emt 0:01:04]} 3. Nf3 {[%emt 0:00:17]} Nc6 {[%emt 0:00:08]} 4. e4 {[%emt 0:00:03]} Bb4 {[%emt 0:01:12]} 5. d3 {[%emt 0:00:07]} d6 {[%emt 0:00:48]} 6. a3 {[%emt 0:00:42] A28: English Opening: Four Knights Variation.} Bc5 {[%emt 0:00:22]} 7. b4 {[%emt 0:00:12]} Bb6 {[%emt 0:00:13]} 8. Na4 {[%emt 0:00:39]} Bg4 {[%emt 0:00:45]} 9. Nxb6 {[%emt 0:01:08]} axb6 {[%emt 0:02:45]} 10. Bb2 $1 {[%emt 0:00:11] [#]} Qe7 $146 {[%emt 0:07:31]} ({Predecessor:} 10... Bxf3 11. Qxf3 Nd7 12. g3 Qf6 13. Qd1 Nf8 14. Bg2 Ne6 15. O-O g5 16. Bh3 h5 17. Bxe6 Qxe6 {1-0 (83) Abdusattorov,N (2633)-Carlsen,M (2856) Warsaw 2021}) 11. Be2 {[%emt 0:02:56]} h5 {[%emt 0:02:41]} 12. Nd2 {[%emt 0:05:52]} Bxe2 {[%emt 0:03:56]} 13. Qxe2 {[%emt 0:00:05]} Nd4 {[%emt 0:04:05]} (13... Nd8 $11) 14. Bxd4 $14 {[%emt 0:05:30]} exd4 {[%emt 0:00:06]} 15. Nb3 {[%emt 0:03:17]} c5 {[%emt 0:01:31]} 16. a4 {[%emt 0:00:10]} g6 {[%emt 0:05:50]} 17. O-O {[%emt 0:02:27]} O-O {[%emt 0:02:27]} 18. Qd2 {[%emt 0:01:30]} Ra7 {[%emt 0:08:00]} 19. Qg5 {[%emt 0:09:03]} Qd8 {[%emt 0:07:24]} (19... Rfa8 $5 {[%cal Ra7a4]}) 20. Qg3 {[%emt 0:28:30]} Qe7 {[%emt 0:03:39] The position is equal.} 21. Qg5 {[%emt 0:00:18]} Qd8 {[%emt 0:00:06]} 22. Qg3 {[%emt 0:00:14]} Qe7 {[%emt 0:00:07]} 23. Qg5 {[%emt 0:38:25] Weighted Error Value: White=0.09 (flawless) /Black=0.09 (flawless)} 1/2-1/2